bitfinex/quotes_BTCUSD_20240803
["timestamp","ask_amount","ask_price","bid_price","bid_amount"]
[1722703083900,0.03214671,61203.0,61197.0,0.09790135]
[1722703083901,0.81702,61198.0,61197.0,0.09790135]
[1722703084106,0.490227,61196.0,61195.0,0.0979084]
[1722703084333,0.490267,61191.0,61190.0,0.0979084]
[1722703084551,0.490267,61191.0,61190.0,0.000913]
[1722703084552,0.97457124,61191.0,61190.0,0.000913]
[1722703084762,0.99840124,61191.0,61190.0,0.000913]
[1722703085007,1.2682549,61191.0,61190.0,0.000913]
[1722703085217,1.5950999,61191.0,61190.0,0.000913]
[1722703085435,2.42291746,61191.0,61190.0,0.000913]
[1722703085661,2.28556229,61191.0,61190.0,0.000913]
[1722703086634,2.23993253,61191.0,61190.0,0.000913]
[1722703087306,1.90308753,61191.0,61190.0,0.000913]
[1722703087520,1.91193971,61191.0,61190.0,0.000913]
[1722703087731,1.91193971,61191.0,61190.0,0.001913]
[1722703087732,1.78105208,61191.0,61190.0,0.001913]
[1722703087950,1.91698314,61191.0,61190.0,0.001913]
[1722703088396,0.17214142,61191.0,61190.0,0.001913]
[1722703088621,0.17214142,61191.0,61190.0,0.0284543]
[1722703088622,0.01468218,61191.0,61190.0,0.0284543]
[1722703088848,0.01468218,61191.0,61190.0,0.03922316]
[1722703089507,0.00583,61191.0,61190.0,0.04249141]
[1722703089735,0.00583,61191.0,61190.0,0.01268186]
[1722703089980,0.00583,61191.0,61190.0,0.01568186]
[1722703090256,0.00083,61191.0,61190.0,0.01468186]
[1722703090472,0.00083,61191.0,61190.0,0.8109194]
[1722703090687,0.00083,61191.0,61190.0,0.8049194]
[1722703090897,0.00083,61191.0,61190.0,0.7949194]
[1722703091113,0.00083,61191.0,61190.0,0.64419214]
[1722703091329,0.00083,61191.0,61190.0,0.56898186]
[1722703091566,0.00083,61191.0,61190.0,0.27918186]
[1722703091780,0.00083,61191.0,61190.0,0.29318186]
[1722703092011,0.00083,61191.0,61190.0,0.26518186]
[1722703092222,0.00083,61191.0,61190.0,0.01168186]
[1722703092442,0.15828924,61191.0,61190.0,0.02268186]
[1722703092650,0.00083,61191.0,61190.0,0.02268186]
[1722703093064,0.00083,61191.0,61190.0,0.011913]
[1722703093928,0.00083,61191.0,61190.0,0.025913]
[1722703094137,0.64951872,61191.0,61190.0,0.025913]
[1722703094353,0.67251872,61191.0,61190.0,0.025913]
[1722703094828,1.09936372,61191.0,61190.0,0.025913]
[1722703095059,0.79814848,61191.0,61190.0,0.025913]
[1722703095275,0.30788148,61191.0,61190.0,0.025913]
[1722703095501,0.47130348,61191.0,61190.0,0.025913]
[1722703095736,1.12499348,61191.0,61190.0,0.025913]
[1722703095963,0.4127,61190.0,61169.0,0.010109]
[1722703096189,0.490435,61170.0,61169.0,0.010109]
[1722703096404,0.97485124,61170.0,61169.0,0.010109]
[1722703096688,0.77089424,61170.0,61169.0,0.010109]
[1722703096900,0.44393724,61170.0,61169.0,0.010109]
[1722703097103,0.79653364,61170.0,61169.0,0.010109]
[1722703097352,1.09785124,61170.0,61169.0,0.010109]
[1722703097593,0.77089424,61170.0,61169.0,0.010109]
[1722703097842,0.77589424,61170.0,61169.0,0.010109]
[1722703098077,1.09785124,61170.0,61169.0,0.010109]
[1722703098316,0.28045924,61170.0,61169.0,0.011109]
[1722703098560,0.28245924,61170.0,61169.0,0.011109]
[1722703098789,0.28342172,61170.0,61169.0,0.011109]
[1722703099002,0.28245924,61170.0,61169.0,0.0211151]
[1722703099427,0.44593724,61170.0,61169.0,0.010109]
[1722703099635,0.44962039,61170.0,61169.0,0.010109]
[1722703100044,0.47525916,61170.0,61169.0,0.010109]
[1722703100245,0.80221616,61170.0,61169.0,0.010109]
[1722703100451,0.47525916,61170.0,61169.0,0.010109]
[1722703100664,0.80021616,61170.0,61169.0,0.010109]
[1722703100868,0.80740577,61170.0,61169.0,0.010109]
[1722703101103,1.13436277,61170.0,61169.0,0.010109]
[1722703101323,1.13436277,61170.0,61169.0,0.011109]
[1722703101324,2.74557677,61170.0,61169.0,0.011109]
[1722703101544,2.90651358,61170.0,61169.0,0.011109]
[1722703101766,2.22041977,61170.0,61169.0,0.010109]
[1722703101984,1.95831977,61170.0,61169.0,0.010109]
[1722703102197,1.79321977,61170.0,61169.0,0.010109]
[1722703102412,1.79021977,61170.0,61169.0,0.010109]
[1722703102639,2.13825073,61170.0,61169.0,0.010109]
[1722703102898,2.13825073,61170.0,61138.0,0.0001]
[1722703102899,0.01,61111.0,61088.0,0.14912251]
[1722703103122,0.17347389,61077.0,61076.0,0.3275]
[1722703103362,0.17347389,61077.0,61073.0,0.0008]
[1722703103363,0.163778,61058.0,61038.0,0.0002547]
[1722703103575,0.819147,61039.0,61038.0,0.0002547]
[1722703103836,2.43081255,61039.0,61038.0,0.0002547]
[1722703104058,2.43081255,61039.0,60992.0,0.25795194]
[1722703104059,0.00974689,61005.0,60977.0,0.00025311]
[1722703104295,0.1032,61028.0,61012.0,0.00025311]
[1722703104296,0.00096248,61013.0,61012.0,0.00025311]
[1722703104506,0.00096248,61013.0,60981.0,0.00025311]
[1722703104507,0.327874,60999.0,60981.0,0.00025311]
[1722703104719,1.12765966,61004.0,60990.0,0.00025311]
[1722703104720,0.163958,60991.0,60990.0,0.00025311]
[1722703104965,0.00974689,60952.0,60940.0,0.0011]
[1722703105179,0.328093,60959.0,60940.0,0.0011]
[1722703105180,0.164082,60945.0,60944.0,0.1]
[1722703105450,0.164069,60950.0,60949.0,0.00025311]
[1722703105721,0.164069,60950.0,60940.0,0.0011]
[1722703105722,0.164085,60944.0,60940.0,0.0011]
[1722703105992,0.15842172,60943.0,60940.0,0.0011]
[1722703106203,0.1,60949.0,60948.0,0.00025311]
[1722703106645,0.1,60949.0,60944.0,0.001]
[1722703106892,0.15745924,60945.0,60944.0,0.001]
[1722703107107,0.15745924,60945.0,60944.0,0.00125311]
[1722703107330,0.25745924,60945.0,60944.0,0.001]
[1722703107599,0.10636307,60945.0,60944.0,0.00125311]
[1722703107859,0.02573028,60945.0,60944.0,0.26675311]
[1722703108106,0.328033,60970.0,60944.0,0.26675311]
[1722703108107,0.47251164,60970.0,60969.0,0.00025311]
[1722703108334,0.47251164,60970.0,60967.0,0.00025311]
[1722703108545,0.328037,60969.0,60954.0,0.00025311]
[1722703108774,0.24277094,60969.0,60956.0,0.00025311]
[1722703108998,0.07875194,60978.0,60938.0,0.34425194]
[1722703108999,0.15745924,60966.0,60965.0,0.00025311]
[1722703109524,0.47251164,60980.0,60965.0,0.00025311]
[1722703109753,0.15745924,60966.0,60965.0,0.00025311]
[1722703109967,0.15745924,60966.0,60958.0,0.00025311]
[1722703110175,0.15745924,60963.0,60958.0,0.00025311]
[1722703110632,0.15745924,60963.0,60962.0,0.00025311]
[1722703110865,0.25745924,60963.0,60962.0,0.07900505]
[1722703111114,0.48251164,60985.0,60972.0,0.00025311]
[1722703111115,0.47251164,60985.0,60972.0,0.00025311]
[1722703111364,0.15745924,60979.0,60974.0,0.00025311]
[1722703111585,0.15745924,60979.0,60978.0,0.00025311]
[1722703112025,0.01,60973.0,60961.0,0.00025311]
[1722703112242,0.01,60962.0,60956.0,0.00025311]
[1722703112453,0.15745924,60963.0,60948.0,0.00025311]
[1722703112454,0.328121,60953.0,60948.0,0.00025311]
[1722703112705,0.01,60949.0,60941.0,0.00025311]
[1722703112919,0.15745924,60943.0,60940.0,0.00025311]
[1722703113139,0.15745924,60943.0,60942.0,0.00025311]
[1722703113356,0.02573415,60952.0,60951.0,0.00025311]
[1722703113573,0.02573415,60952.0,60951.0,0.07900505]
[1722703113796,0.02573415,60952.0,60951.0,0.34450505]
[1722703114238,0.02573415,60952.0,60951.0,0.26575311]
[1722703114444,0.02573415,60952.0,60951.0,0.00025311]
[1722703115535,0.18319339,60952.0,60951.0,0.00025311]
[1722703115783,0.18319339,60952.0,60913.0,0.02]
[1722703115784,0.164083,60945.0,60941.0,0.00025311]
[1722703115996,0.18319339,60952.0,60937.0,0.00025311]
[1722703115997,0.01,60941.0,60937.0,0.00025311]
[1722703116213,0.164131,60927.0,60925.0,0.00025311]
[1722703116449,0.01,60935.0,60924.0,0.00025311]
[1722703116450,0.502408,60925.0,60924.0,0.00025311]
[1722703116664,0.28045924,60925.0,60922.0,0.00025311]
[1722703116944,0.16416,60916.0,60915.0,0.00025311]
[1722703117179,0.16416,60916.0,60904.0,0.01012]
[1722703117180,0.164187,60906.0,60905.0,0.00025311]
[1722703117390,0.164187,60906.0,60904.0,0.01012]
[1722703117391,0.83095,60905.0,60904.0,0.01012]
[1722703117606,0.83095,60905.0,60884.0,0.00025311]
[1722703117607,0.164227,60891.0,60884.0,0.00025311]
[1722703118050,0.164227,60891.0,60881.0,0.010164]
[1722703118051,0.28045924,60891.0,60889.0,0.00025311]
[1722703118266,0.15745924,60891.0,60890.0,0.00035311]
[1722703118473,0.15745924,60891.0,60874.0,0.39055194]
[1722703118698,0.00157439,60890.0,60884.0,0.01]
[1722703118919,0.005,60909.0,60893.0,0.005]
[1722703119131,0.005,60917.0,60908.0,0.07875194]
[1722703119341,0.005,60914.0,60901.0,0.07875194]
[1722703119565,0.02574537,60906.0,60901.0,0.30765194]
[1722703119783,0.005,60915.0,60901.0,0.28765194]
[1722703120024,0.00157439,60926.0,60905.0,0.01]
[1722703120253,0.00157439,60926.0,60911.0,0.2089]
[1722703120254,0.16245924,60925.0,60911.0,0.2089]
[1722703120468,0.005,60904.0,60890.0,0.5207]
[1722703120689,0.005,60904.0,60895.0,0.07875194]
[1722703120903,0.005,60904.0,60888.0,0.08375194]
[1722703120904,0.005,60896.0,60888.0,0.07875194]
[1722703121112,0.338318,60917.0,60863.0,0.3118]
[1722703121113,0.005,60870.0,60863.0,0.3118]
[1722703121322,0.1721,60901.0,60855.0,0.2655]
[1722703121323,0.005,60868.0,60855.0,0.2655]
[1722703121531,0.005,60865.0,60856.0,0.07875194]
[1722703121775,0.005,60867.0,60857.0,0.03644159]
[1722703122254,0.1,60888.0,60856.0,0.07375194]
[1722703122255,0.005,60870.0,60864.0,0.07875194]
[1722703123100,0.005,60865.0,60856.0,0.07375194]
[1722703123358,0.005,60867.0,60865.0,0.07875194]
[1722703123769,0.00894542,60872.0,60865.0,0.07875194]
[1722703124227,0.005,60878.0,60865.0,0.07875194]
[1722703124496,0.02576032,60871.0,60866.0,0.00837519]
[1722703124682,0.005,60878.0,60865.0,0.07875194]
[1722703124940,0.005,60878.0,60873.0,0.07875194]
[1722703125371,0.005,60875.0,60865.0,0.07875194]
[1722703125586,0.00910762,60880.0,60866.0,0.07875194]
[1722703125587,0.005,60872.0,60866.0,0.07875194]
[1722703126890,0.005,60869.0,60867.0,0.07875194]
[1722703127125,0.005,60868.0,60856.0,0.07375194]
[1722703127335,0.005,60878.0,60867.0,0.07875194]
[1722703127551,0.005,60871.0,60867.0,0.07875194]
[1722703128198,0.065816,60885.0,60867.0,0.07875194]
[1722703128199,0.005,60878.0,60867.0,0.07875194]
[1722703128448,0.005,60878.0,60877.0,0.07875194]
[1722703128666,0.005,60870.0,60868.0,0.01119678]
[1722703128876,0.005,60866.0,60856.0,0.07375194]
[1722703129089,0.005,60856.0,60850.0,0.3118]
[1722703129299,0.65043999,60855.0,60844.0,0.2554]
[1722703129514,0.65043999,60855.0,60829.0,0.29821594]
[1722703129515,0.98908999,60855.0,60829.0,0.010164]
[1722703129729,2.04778999,60855.0,60829.0,0.010164]
[1722703129942,0.01,60849.0,60823.0,0.07875194]
[1722703130164,0.15745924,60838.0,60823.0,0.07875194]
[1722703130391,0.10157439,60837.0,60822.0,0.2093]
[1722703130639,0.15745924,60836.0,60823.0,0.07875194]
[1722703130875,0.00157439,60835.0,60830.0,0.07875194]
[1722703131093,0.00157439,60854.0,60830.0,0.07875194]
[1722703131317,0.01,60862.0,60830.0,0.07875194]
[1722703131318,0.1,60849.0,60843.0,0.07875194]
[1722703131536,0.47251164,60861.0,60853.0,0.07875194]
[1722703131755,0.47251164,60861.0,60843.0,0.07875194]
[1722703131756,0.1,60852.0,60843.0,0.07875194]
[1722703131970,0.47251164,60861.0,60843.0,0.07875194]
[1722703131971,0.15745924,60851.0,60850.0,0.07875194]
[1722703132183,0.15745924,60851.0,60843.0,0.07875194]
[1722703132395,0.15745924,60851.0,60850.0,0.07875194]
[1722703132603,0.15745924,60851.0,60843.0,0.07875194]
[1722703132844,0.328688,60848.0,60830.0,0.07875194]
[1722703133059,0.15903363,60847.0,60830.0,0.07875194]
[1722703133270,0.15745924,60847.0,60837.0,0.07875194]
[1722703133479,0.15745924,60847.0,60830.0,0.07875194]
[1722703133480,0.328723,60842.0,60830.0,0.07875194]
[1722703133713,0.328723,60842.0,60816.0,0.44821593]
[1722703133714,0.55524682,60835.0,60816.0,0.23891593]
[1722703133937,0.01157439,60834.0,60816.0,0.16016399]
[1722703134147,0.822137,60817.0,60816.0,0.16016399]
[1722703134358,0.1,60817.0,60816.0,0.16016399]
[1722703134831,0.287427,60817.0,60816.0,0.16016399]
[1722703135057,0.123,60817.0,60816.0,0.16016399]
[1722703135268,0.25745924,60817.0,60816.0,0.16016399]
[1722703135500,0.01,60839.0,60816.0,0.16016399]
[1722703135501,0.00157439,60831.0,60817.0,0.585]
[1722703135732,0.15745924,60830.0,60828.0,0.07875194]
[1722703135981,0.47251164,60842.0,60836.0,0.07875194]
[1722703136186,0.47251164,60842.0,60821.0,0.08875194]
[1722703136187,0.47251164,60842.0,60829.0,0.07875194]
[1722703136394,0.01,60842.0,60817.0,0.07875194]
[1722703136632,0.2552,60835.0,60816.0,0.16016399]
[1722703136834,0.3014,60834.0,60816.0,0.16016399]
[1722703137043,0.15745924,60826.0,60816.0,0.16016399]
[1722703137269,0.493282,60817.0,60816.0,0.16016399]
[1722703137480,0.28045924,60817.0,60816.0,0.16016399]
[1722703137685,0.25745924,60817.0,60816.0,0.16016399]
[1722703138100,0.77374124,60817.0,60816.0,0.16016399]
[1722703138305,1.10259624,60817.0,60816.0,0.16016399]
[1722703138535,1.24774016,60817.0,60816.0,0.16016399]
[1722703138734,1.151143,60809.0,60808.0,0.0001]
[1722703138939,1.10270424,60809.0,60808.0,0.0001]
[1722703139176,1.181164,60808.0,60807.0,0.13242588]
[1722703139371,1.10271924,60808.0,60807.0,0.13242588]
[1722703139587,1.151293,60801.0,60800.0,4e-05]
[1722703139811,0.49342,60800.0,60799.0,0.10503999]
[1722703140092,0.25903363,60800.0,60799.0,0.10503999]
[1722703140314,0.15745924,60800.0,60799.0,0.10503999]
[1722703140543,0.328812,60825.0,60799.0,0.10503999]
[1722703140755,0.47251164,60827.0,60821.0,0.07875194]
[1722703140756,0.328822,60823.0,60821.0,0.07875194]
[1722703140970,0.15745924,60822.0,60807.0,0.07875194]
[1722703141205,0.47251164,60827.0,60800.0,0.07875194]
[1722703141206,0.15745924,60813.0,60800.0,0.07875194]
[1722703141427,0.15745924,60813.0,60799.0,0.10503999]
[1722703141428,0.2184,60809.0,60799.0,0.10503999]
[1722703141633,0.842367,60800.0,60799.0,0.10503999]
[1722703141838,1.161314,60800.0,60799.0,0.10503999]
[1722703142045,1.32877324,60800.0,60799.0,0.10503999]
[1722703142434,1.45177324,60800.0,60799.0,0.10503999]
[1722703142683,0.77387924,60800.0,60799.0,0.10503999]
[1722703142901,0.28045924,60800.0,60799.0,0.10503999]
[1722703143130,0.42193224,60800.0,60799.0,0.10503999]
[1722703143336,0.25745924,60800.0,60799.0,0.10503999]
[1722703143547,0.75087924,60800.0,60799.0,0.10503999]
[1722703144009,0.25745924,60800.0,60799.0,0.10503999]
[1722703144238,0.2084,60821.0,60800.0,0.2541]
[1722703144489,0.47251164,60822.0,60820.0,0.07875194]
[1722703144897,0.3138,60836.0,60820.0,0.07875194]
[1722703145109,0.01,60833.0,60827.0,0.07875194]
[1722703145319,0.16439,60831.0,60820.0,0.07875194]
[1722703145550,0.15745924,60831.0,60828.0,0.07875194]
[1722703145755,0.3138,60847.0,60828.0,0.07875194]
[1722703145756,0.47251164,60846.0,60828.0,0.07875194]
[1722703145966,0.15745924,60835.0,60830.0,0.07875194]
[1722703146185,0.3138,60847.0,60830.0,0.07875194]
[1722703146186,0.15745924,60842.0,60830.0,0.07875194]
[1722703146405,0.3138,60859.0,60842.0,0.07875194]
[1722703146614,0.47251164,60865.0,60857.0,0.07875194]
[1722703146858,0.1721,60864.0,60857.0,0.07875194]
[1722703147064,0.328549,60874.0,60864.0,0.07875194]
[1722703147278,0.328549,60874.0,60850.0,0.07875194]
[1722703147279,0.15745924,60865.0,60850.0,0.07875194]
[1722703147565,0.01,60878.0,60850.0,0.07875194]
[1722703147566,0.15745924,60864.0,60857.0,0.07875194]
[1722703147777,0.47251164,60881.0,60875.0,0.07875194]
[1722703147983,0.15745924,60880.0,60864.0,0.07875194]
[1722703148203,0.15745924,60880.0,60871.0,0.07875194]
[1722703148425,0.15745924,60880.0,60878.0,0.07875194]
[1722703148636,0.48251164,60899.0,60878.0,0.07875194]
[1722703148835,0.48251164,60899.0,60887.0,0.07875194]
[1722703148836,0.15745924,60889.0,60887.0,0.07875194]
[1722703149244,0.15745924,60889.0,60880.0,0.07875194]
[1722703149245,0.15745924,60889.0,60888.0,0.07875194]
[1722703149452,0.15745924,60889.0,60880.0,0.07875194]
[1722703149654,0.065806,60898.0,60887.0,0.07875194]
[1722703149857,0.15745924,60897.0,60887.0,0.07875194]
[1722703150068,0.15745924,60897.0,60894.0,0.07875194]
[1722703150274,0.15745924,60897.0,60880.0,0.07875194]
[1722703150477,0.15745924,60897.0,60888.0,0.07875194]
[1722703150903,0.15745924,60897.0,60880.0,0.07875194]
[1722703151107,0.15245924,60897.0,60880.0,0.07875194]
[1722703151342,0.15745924,60892.0,60872.0,0.3326]
[1722703151548,0.15745924,60887.0,60879.0,0.07875194]
[1722703151984,0.164247,60884.0,60872.0,0.41135194]
[1722703152195,0.15745924,60887.0,60879.0,0.07875194]
[1722703152407,0.15745924,60887.0,60873.0,0.07875194]
[1722703152635,0.1,60886.0,60880.0,0.07875194]
[1722703152848,0.328416,60899.0,60880.0,0.07875194]
[1722703153054,0.164212,60897.0,60890.0,0.07875194]
[1722703153267,0.15745924,60898.0,60880.0,0.07875194]
[1722703153268,0.15745924,60896.0,60880.0,0.07875194]
[1722703153475,0.15745924,60893.0,60874.0,0.06654519]
[1722703153697,0.164239,60887.0,60875.0,0.07319971]
[1722703153944,0.328493,60884.0,60875.0,0.07319971]
[1722703154154,0.15745924,60883.0,60872.0,0.41135194]
[1722703154383,0.15745924,60883.0,60862.0,0.3326]
[1722703154587,0.164295,60866.0,60862.0,0.5867]
[1722703154792,0.164296,60866.0,60864.0,0.07875194]
[1722703155004,0.164296,60866.0,60847.0,0.00999425]
[1722703155005,0.164313,60860.0,60855.0,0.3326]
[1722703155248,0.1,60865.0,60857.0,0.55126358]
[1722703155452,0.10526404,60859.0,60858.0,0.08838636]
[1722703155667,0.10526404,60859.0,60857.0,0.07875194]
[1722703155871,0.10526404,60859.0,60855.0,0.3326]
[1722703156079,0.10526404,60859.0,60858.0,0.07875194]
[1722703157085,0.3238,60894.0,60858.0,0.07875194]
[1722703157086,0.328453,60892.0,60864.0,0.01]
[1722703157292,0.328453,60892.0,60883.0,0.07875194]
[1722703157293,0.164234,60889.0,60883.0,0.07875194]
[1722703157428,0.01,60901.0,60883.0,0.07875194]
[1722703157429,0.164244,60885.0,60883.0,0.07875194]
[1722703157830,0.1721,60895.0,60883.0,0.07875194]
[1722703157831,0.164222,60893.0,60883.0,0.07875194]
[1722703158035,0.103404,60892.0,60890.0,0.07875194]
[1722703158248,0.103404,60892.0,60883.0,0.07875194]
[1722703158425,0.15745924,60891.0,60883.0,0.07875194]
[1722703158653,0.103404,60890.0,60883.0,0.07875194]
[1722703158864,0.15745924,60889.0,60883.0,0.11988713]
[1722703159082,0.15745924,60889.0,60883.0,0.07875194]
[1722703159285,0.103404,60890.0,60883.0,0.07875194]
[1722703159513,0.15745924,60888.0,60883.0,0.07875194]
[1722703159725,0.15745924,60888.0,60876.0,0.07875194]
[1722703159929,0.15745924,60888.0,60872.0,0.3002]
[1722703160159,0.1,60887.0,60881.0,0.07875194]
[1722703160382,0.00157439,60903.0,60881.0,0.07875194]
[1722703160383,0.47251164,60905.0,60881.0,0.07875194]
[1722703160594,0.15745924,60902.0,60892.0,0.07875194]
[1722703160825,0.103404,60901.0,60892.0,0.07875194]
[1722703161034,0.15745924,60900.0,60892.0,0.07875194]
[1722703161444,0.164215,60896.0,60882.0,0.27187519]
[1722703161675,0.25745924,60895.0,60888.0,0.07875194]
[1722703161877,0.103404,60894.0,60888.0,0.07875194]
[1722703163020,0.00096248,60893.0,60888.0,0.07875194]
[1722703163228,0.103404,60894.0,60888.0,0.07875194]
[1722703163440,0.103404,60894.0,60889.0,0.00328428]
[1722703163647,0.103404,60894.0,60893.0,0.01]
[1722703163869,0.103404,60894.0,60893.0,0.32896952]
[1722703164075,0.00096248,60914.0,60893.0,0.47642876]
[1722703164292,0.15745924,60913.0,60909.0,0.07875194]
[1722703164497,0.26086324,60913.0,60911.0,0.07875194]
[1722703164705,0.103404,60912.0,60911.0,0.07875194]
[1722703165145,0.103404,60912.0,60902.0,0.07875194]
[1722703165348,0.103404,60912.0,60909.0,0.07875194]
[1722703165573,0.103404,60912.0,60910.0,0.56648345]
[1722703165775,0.103404,60912.0,60911.0,0.02501552]
[1722703166410,0.00916127,60923.0,60912.0,0.02]
[1722703166620,0.00916127,60923.0,60922.0,0.07875194]
[1722703167055,0.00916127,60923.0,60922.0,0.08203436]
[1722703168069,0.00916127,60923.0,60922.0,0.07875194]
[1722703168917,0.00916127,60923.0,60922.0,0.35423757]
[1722703169332,0.00916127,60923.0,60922.0,0.35095538]
[1722703169530,0.00916127,60923.0,60917.0,0.34175194]
[1722703170557,0.00916127,60923.0,60918.0,0.00328285]
[1722703170973,0.00916127,60923.0,60919.0,0.10505669]
[1722703171180,0.492448,60920.0,60919.0,0.10505669]
[1722703171389,0.820842,60913.0,60901.0,0.263]
[1722703171614,0.820842,60913.0,60890.0,0.263]
[1722703171615,1.30663824,60913.0,60890.0,0.263]
[1722703171833,1.10130124,60913.0,60912.0,2.9869023]
[1722703172498,0.25745924,60913.0,60912.0,2.9869023]
[1722703172707,0.15745924,60913.0,60912.0,2.9869023]
[1722703172913,0.3,60926.0,60912.0,2.9869023]
[1722703172914,0.00096248,60920.0,60912.0,2.9869023]
[1722703173168,0.15745924,60919.0,60918.0,0.07875194]
[1722703173384,0.1,60924.0,60918.0,0.07875194]
[1722703173608,0.15745924,60922.0,60914.0,0.263]
[1722703173801,0.00096248,60938.0,60920.0,0.07875194]
[1722703173977,0.15842172,60935.0,60920.0,0.07875194]
[1722703174177,0.15745924,60935.0,60934.0,0.07875194]
[1722703174389,0.32156824,60935.0,60927.0,0.07875194]
[1722703174609,0.328224,60934.0,60920.0,0.07875194]
[1722703174802,0.01835224,60936.0,60920.0,0.07875194]
[1722703174803,0.15745924,60933.0,60920.0,0.07875194]
[1722703175012,0.328247,60930.0,60914.0,0.263]
[1722703175217,0.328267,60926.0,60920.0,0.07875194]
[1722703175426,0.15745924,60925.0,60920.0,0.07875194]
[1722703175631,0.01835224,60936.0,60920.0,0.07875194]
[1722703175843,0.01835224,60936.0,60928.0,0.07875194]
[1722703175844,0.15745924,60935.0,60928.0,0.07875194]
[1722703176060,0.23644982,60934.0,60920.0,0.07875194]
[1722703176268,0.29487154,60933.0,60921.0,0.07875194]
[1722703176474,0.57606262,60932.0,60914.0,0.263]
[1722703176681,0.164168,60913.0,60908.0,0.263]
[1722703176892,0.64996424,60913.0,60901.0,0.3002]
[1722703177137,1.21478957,60913.0,60912.0,2.9704123]
[1722703177525,1.54313243,60913.0,60912.0,2.9704123]
[1722703177732,1.73676442,60913.0,60912.0,2.9704123]
[1722703178134,1.40842742,60913.0,60912.0,2.9704123]
[1722703178389,1.73676442,60913.0,60912.0,2.9704123]
[1722703178595,1.40842742,60913.0,60912.0,2.9704123]
[1722703178815,1.73676442,60913.0,60912.0,2.9704123]
[1722703179029,1.73676442,60913.0,60912.0,2.83250351]
[1722703179030,2.40455659,60913.0,60912.0,2.83250351]
[1722703179236,3.1591119,60913.0,60912.0,2.01103004]
[1722703179464,3.37606784,60913.0,60912.0,1.72466759]
[1722703179671,3.04773084,60913.0,60912.0,1.67529765]
[1722703179876,3.17123842,60913.0,60912.0,1.67529765]
[1722703180098,3.38546355,60913.0,60912.0,1.67529765]
[1722703180346,0.174292,60867.0,60866.0,0.47251164]
[1722703180559,0.174292,60867.0,60854.0,0.47251164]
[1722703180560,0.13649419,60867.0,60854.0,0.47251164]
[1722703180775,0.00157439,60866.0,60850.0,0.07875194]
[1722703181037,0.00157439,60866.0,60852.0,0.59688604]
[1722703181236,0.32172324,60878.0,60852.0,0.5936]
[1722703181237,0.4325,60877.0,60852.0,0.5936]
[1722703181450,0.13816871,60876.0,60853.0,0.00328637]
[1722703181662,0.23659432,60875.0,60852.0,0.5936]
[1722703181866,0.164297,60866.0,60852.0,0.5936]
[1722703182083,0.1,60875.0,60852.0,0.5936]
[1722703182084,0.16431,60861.0,60852.0,0.5936]
[1722703182303,0.164289,60869.0,60852.0,0.5936]
[1722703182508,0.3,60873.0,60843.0,0.2613]
[1722703182509,0.492999,60852.0,60843.0,0.2613]
[1722703182712,0.492999,60852.0,60833.0,0.2613]
[1722703182713,2.18307868,60852.0,60833.0,0.2613]
[1722703182922,2.18307868,60852.0,60820.0,0.07875194]
[1722703182923,2.37817868,60852.0,60823.0,0.2613]
[1722703183128,2.54900792,60852.0,60827.0,0.07875194]
[1722703183358,2.54900792,60852.0,60814.0,0.47251164]
[1722703183359,1.3239,60842.0,60841.0,0.117127]
[1722703183567,1.3239,60842.0,60795.0,0.065867]
[1722703183568,0.164425,60818.0,60817.0,0.47251164]
[1722703183773,0.78745307,60818.0,60817.0,0.47251164]
[1722703183988,0.78745307,60818.0,60802.0,0.2613]
[1722703183989,0.39418596,60818.0,60802.0,0.2613]
[1722703184192,0.39418596,60817.0,60807.0,0.03400519]
[1722703184399,0.13672672,60816.0,60807.0,0.03400519]
[1722703184604,0.428866,60815.0,60807.0,0.03400519]
[1722703184847,0.1,60815.0,60813.0,0.07875194]
[1722703185049,0.48631424,60817.0,60813.0,0.07875194]
[1722703185050,0.15745924,60817.0,60813.0,0.07875194]
[1722703185460,0.328861,60816.0,60813.0,0.07875194]
[1722703185686,0.15745924,60815.0,60813.0,0.07875194]
[1722703186326,0.1721,60835.0,60815.0,0.2613]
[1722703186327,0.47251164,60835.0,60815.0,0.2613]
[1722703186521,0.02,60860.0,60815.0,0.2613]
[1722703186522,0.3325,60852.0,60834.0,0.07875194]
[1722703186726,0.13666634,60851.0,60834.0,0.07875194]
[1722703186932,0.328672,60851.0,60834.0,0.07875194]
[1722703187139,0.328699,60846.0,60835.0,0.2613]
[1722703187344,0.00932766,60858.0,60835.0,0.2613]
[1722703187345,0.32869,60848.0,60835.0,0.2613]
[1722703187544,0.16435,60846.0,60845.0,0.07875194]
[1722703187751,0.15745924,60846.0,60845.0,0.07875194]
[1722703188162,0.164376,60836.0,60835.0,0.2613]
[1722703188370,0.328758,60835.0,60827.0,0.34005194]
[1722703188579,0.328768,60833.0,60820.0,0.07875194]
[1722703188797,0.15745924,60833.0,60828.0,0.07875194]
[1722703189220,0.1721,60854.0,60828.0,0.07875194]
[1722703189221,0.328677,60850.0,60828.0,0.07875194]
[1722703189423,0.1,60851.0,60836.0,0.07875194]
[1722703189424,0.47251164,60844.0,60836.0,0.07875194]
[1722703189627,0.1,60849.0,60836.0,0.07875194]
[1722703189628,0.15745924,60843.0,60836.0,0.07875194]
[1722703189835,0.15745924,60843.0,60828.0,0.07875194]
[1722703190038,0.15745924,60837.0,60821.0,0.07251025]
[1722703190243,0.15745924,60837.0,60835.0,0.07875194]
[1722703191068,0.3325,60816.0,60799.0,0.10595299]
[1722703191274,0.49342,60800.0,60799.0,0.10595299]
[1722703191481,0.1,60809.0,60799.0,0.10595299]
[1722703191898,0.164473,60800.0,60799.0,0.10595299]
[1722703192051,0.328914,60806.0,60799.0,0.10595299]
[1722703192267,0.164473,60800.0,60799.0,0.10595299]
[1722703192467,0.264473,60800.0,60799.0,0.10595299]
[1722703192683,0.1,60800.0,60799.0,0.10595299]
[1722703192878,0.3325,60816.0,60799.0,0.10595299]
[1722703193101,0.164458,60806.0,60799.0,0.10595299]
[1722703193302,0.123,60815.0,60799.0,0.10595299]
[1722703193303,0.164473,60800.0,60799.0,0.10595299]
[1722703193561,0.1,60805.0,60799.0,0.10595299]
[1722703193764,0.4,60812.0,60799.0,0.10595299]
[1722703193969,0.164473,60800.0,60799.0,0.10595299]
[1722703194171,0.187473,60800.0,60799.0,0.10595299]
[1722703194301,0.51642,60800.0,60799.0,0.10595299]
[1722703194669,0.164473,60800.0,60799.0,0.10595299]
[1722703194877,0.49342,60800.0,60799.0,0.10595299]